bitfinex-derivatives/quotes_BTCF0:USTF0_20250620
["timestamp","ask_amount","ask_price","bid_price","bid_amount"]
[1750385379771,0.5201742,104860.0,104850.0,0.83281483]
[1750385380066,0.5201742,104860.0,104850.0,0.86581483]
[1750385381869,0.8468802,104860.0,104850.0,0.86581483]
[1750385384274,0.8166802,104860.0,104850.0,0.86581483]
[1750385384571,0.8166802,104860.0,104850.0,0.89681483]
[1750385385767,0.8166802,104860.0,104850.0,0.53601483]
[1750385385968,0.8166802,104860.0,104850.0,0.89681483]
[1750385388176,0.8162802,104860.0,104850.0,0.89681483]
[1750385388676,0.8166802,104860.0,104850.0,0.89681483]
[1750385388877,0.81250613,104860.0,104850.0,0.89681483]
[1750385389477,0.78230613,104860.0,104850.0,0.89681483]
[1750385389678,0.78190613,104860.0,104850.0,0.89681483]
[1750385389879,0.7864802,104860.0,104850.0,0.89681483]
[1750385390078,0.71015803,104860.0,104850.0,0.89681483]
[1750385391578,0.7864245,104860.0,104850.0,0.89681483]
[1750385391779,0.8170245,104860.0,104850.0,0.89681483]
[1750385392774,1.16740833,104860.0,104850.0,0.646431]
[1750385392979,1.16740833,104860.0,104850.0,0.582431]
[1750385393176,0.9489245,104860.0,104850.0,0.83281483]
[1750385393377,1.19930833,104860.0,104850.0,0.83281483]
[1750385393677,0.9489245,104860.0,104850.0,0.83281483]
[1750385397181,0.9489245,104860.0,104850.0,0.582431]
[1750385398881,0.69854067,104860.0,104850.0,0.582431]
[1750385399081,0.9489245,104860.0,104850.0,0.83281483]
[1750385402287,1.19930833,104860.0,104850.0,0.80191483]
[1750385402488,1.23080833,104860.0,104850.0,0.80191483]
[1750385403883,0.9804245,104860.0,104850.0,0.83261483]
[1750385404582,0.9794245,104860.0,104850.0,0.83261483]
[1750385404787,0.9824245,104860.0,104850.0,0.83261483]
[1750385405689,0.9824245,104860.0,104850.0,0.582231]
[1750385405890,0.9824245,104860.0,104850.0,0.83261483]
[1750385407190,1.23280833,104860.0,104850.0,0.83261483]
[1750385411901,1.23280833,104860.0,104850.0,0.80191483]
[1750385412097,1.15654186,104860.0,104850.0,0.80191483]
[1750385412298,1.15654186,104860.0,104850.0,0.551531]
[1750385413211,0.6557742,104860.0,104850.0,0.551531]
[1750385413409,1.15654186,104860.0,104850.0,0.551531]
[1750385413913,1.23282586,104860.0,104850.0,0.551531]
[1750385414112,1.23282586,104860.0,104850.0,0.80191483]
[1750385414708,1.23282734,104860.0,104850.0,0.80191483]
[1750385415204,0.73205968,104860.0,104850.0,0.80191483]
[1750385415404,1.23282734,104860.0,104850.0,0.80191483]
[1750385419509,1.15654186,104860.0,104850.0,0.551531]
[1750385419815,1.15654186,104860.0,104850.0,0.80191483]
[1750385421714,1.25186426,104860.0,104850.0,0.80191483]
[1750385422199,1.25186426,104860.0,104850.0,0.83461483]
[1750385431518,1.25036426,104860.0,104850.0,0.83461483]
[1750385431912,1.15504186,104860.0,104850.0,0.83461483]
[1750385432314,0.90465803,104860.0,104850.0,0.83461483]
[1750385434825,1.02504186,104860.0,104850.0,0.584231]
[1750385435024,1.23036426,104860.0,104850.0,0.83461483]
[1750385435222,1.12036426,104860.0,104850.0,0.83461483]
[1750385435425,0.86998043,104860.0,104850.0,0.83461483]
[1750385436026,1.12036426,104860.0,104850.0,0.83461483]
[1750385436525,1.12036426,104860.0,104850.0,0.584231]
[1750385436526,1.15504186,104860.0,104850.0,0.584231]
[1750385436728,1.15504186,104860.0,104850.0,0.83461483]
[1750385440429,1.15504186,104860.0,104850.0,0.584231]
[1750385442626,0.6542742,104860.0,104850.0,0.584231]
[1750385442826,1.15504186,104860.0,104850.0,0.584231]
[1750385443927,0.90465803,104860.0,104850.0,0.584231]
[1750385444427,0.90465803,104860.0,104850.0,0.83461483]
[1750385444627,0.90465803,104860.0,104850.0,0.47381483]
[1750385444832,0.90465803,104860.0,104850.0,0.83461483]
[1750385448329,0.90465803,104860.0,104850.0,0.47381483]
[1750385448531,0.90465803,104860.0,104850.0,0.83461483]
[1750385448834,1.15504186,104860.0,104850.0,0.584231]
[1750385450135,1.15504186,104860.0,104850.0,0.223431]
[1750385450326,1.15504186,104860.0,104850.0,0.584231]
[1750385456036,0.6542742,104860.0,104850.0,0.83461483]
[1750385456336,1.48201803,104860.0,104850.0,0.86701483]
[1750385458344,1.45011803,104860.0,104850.0,0.86701483]
[1750385458530,0.6223742,104860.0,104850.0,0.86701483]
[1750385458735,0.71215803,104860.0,104850.0,0.89831483]
[1750385459037,0.70758396,104860.0,104850.0,0.89831483]
[1750385459435,0.70798396,104860.0,104850.0,0.89831483]
[1750385459943,0.71215803,104860.0,104850.0,0.89831483]
[1750385461842,0.4617742,104860.0,104850.0,0.89831483]
[1750385462044,0.4613742,104860.0,104850.0,0.89831483]
[1750385462348,0.4617742,104860.0,104850.0,0.89831483]
[1750385462747,0.53806591,104860.0,104850.0,0.89831483]
[1750385464337,0.34735321,104860.0,104850.0,0.89831483]
[1750385464839,0.53806601,104860.0,104850.0,0.89831483]
[1750385465737,0.66806601,104860.0,104850.0,0.647931]
[1750385465937,0.53806601,104860.0,104850.0,0.89831483]
[1750385466137,0.78844984,104860.0,104850.0,0.89831483]
[1750385467242,0.93844984,104860.0,104850.0,0.89831483]
[1750385467438,0.78844984,104860.0,104850.0,0.89831483]
[1750385467636,0.92844984,104860.0,104850.0,0.89831483]
[1750385467837,0.78844984,104860.0,104850.0,0.89831483]
[1750385471049,0.82044984,104860.0,104850.0,0.89831483]
[1750385472050,0.74415813,104860.0,104850.0,0.89831483]
[1750385472751,0.83952277,104860.0,104850.0,0.89831483]
[1750385474651,0.74415813,104860.0,104850.0,0.89831483]
[1750385479546,0.74415813,104860.0,104850.0,0.647931]
[1750385479749,0.74415813,104860.0,104850.0,0.89831483]
[1750385480760,0.87415813,104860.0,104850.0,0.89831483]
[1750385481058,0.86415813,104860.0,104850.0,0.83461483]
[1750385481252,0.90725813,104860.0,104850.0,0.83461483]
[1750385481559,0.89725813,104860.0,104850.0,0.83461483]
[1750385481760,0.91725813,104860.0,104850.0,0.83461483]
[1750385481960,0.77725813,104860.0,104850.0,0.83461483]
[1750385482258,0.953564,104860.0,104850.0,0.83461483]
[1750385482448,0.985764,104860.0,104850.0,0.83461483]
[1750385483256,0.885764,104860.0,104850.0,0.83461483]
[1750385483459,0.995764,104860.0,104850.0,0.83461483]
[1750385483660,0.885764,104860.0,104850.0,0.83461483]
[1750385483849,1.005764,104860.0,104850.0,0.83461483]
[1750385484361,1.025764,104860.0,104850.0,0.83461483]
[1750385484562,0.92945813,104860.0,104850.0,0.83461483]
[1750385484762,0.93945813,104860.0,104850.0,0.83461483]
[1750385484960,0.94945813,104860.0,104850.0,0.83461483]
[1750385485158,1.27614848,104860.0,104850.0,0.551531]
[1750385486163,1.27614848,104860.0,104850.0,0.80191483]
[1750385487064,1.27614848,104860.0,104850.0,0.551531]
[1750385487255,1.2952066,104860.0,104850.0,0.80191483]
[1750385489264,1.2952066,104860.0,104850.0,0.551531]
[1750385496956,1.2952066,104860.0,104850.0,0.80191483]
[1750385496957,1.01262277,104860.0,104850.0,0.80191483]
[1750385497161,0.50642614,104860.0,104850.0,0.82501046]
[1750385497366,0.50642614,104860.0,104850.0,0.88831046]
[1750385497367,0.3417743,104860.0,104850.0,0.88831046]
[1750385497575,0.33720023,104860.0,104850.0,0.88831046]
[1750385497869,0.41387129,104860.0,104850.0,1.46623046]
[1750385498061,0.41347129,104860.0,104850.0,1.46623046]
[1750385498262,0.41387129,104860.0,104850.0,1.46623046]
[1750385498571,0.41804536,104860.0,104850.0,1.46623046]
[1750385503171,0.22733256,104860.0,104850.0,1.46623046]
[1750385506876,0.41804536,104860.0,104850.0,1.46623046]
[1750385508775,0.66842919,104860.0,104850.0,1.46623046]
[1750385508976,0.44944536,104860.0,104850.0,1.46623046]
[1750385509277,0.44944536,104860.0,104850.0,1.21584663]
[1750385509579,0.44944536,104860.0,104850.0,1.46623046]
[1750385510077,0.69982919,104860.0,104850.0,1.46623046]
[1750385511479,0.44944536,104860.0,104850.0,1.21584663]
[1750385511782,0.44944536,104860.0,104850.0,1.46623046]
[1750385512078,0.46853894,104860.0,104850.0,1.46623046]
[1750385512973,0.46853894,104860.0,104850.0,1.82703046]
[1750385516077,0.71892277,104860.0,104850.0,1.82703046]
[1750385517179,0.62355813,104860.0,104850.0,1.82703046]
[1750385519282,0.3731743,104860.0,104850.0,1.82703046]
[1750385522087,0.44944321,104860.0,104850.0,1.82703046]
[1750385522486,0.44944321,104860.0,104850.0,1.57664663]
[1750385522687,0.44944321,104860.0,104850.0,1.82703046]
[1750385525388,0.82982704,104860.0,104850.0,1.54544663]
[1750385525692,0.73072704,104860.0,104850.0,1.76373046]
[1750385527294,0.65445813,104860.0,104850.0,1.76373046]
[1750385530194,0.73079125,104860.0,104850.0,1.76373046]
[1750385530795,0.65445813,104860.0,104850.0,1.76373046]
[1750385531491,0.77445813,104860.0,104850.0,1.51334663]
[1750385531689,0.77445813,104860.0,104850.0,1.15341046]
[1750385531690,0.80605813,104860.0,104850.0,1.15341046]
[1750385531896,0.79605813,104860.0,104850.0,1.73037046]
[1750385532797,0.68605813,104860.0,104850.0,1.73037046]
[1750385533396,0.80605813,104860.0,104850.0,1.73037046]
[1750385533591,0.89237855,104860.0,104850.0,1.73037046]
[1750385533796,0.76237855,104860.0,104850.0,1.73037046]
[1750385534495,1.02237855,104860.0,104850.0,1.73037046]
[1750385534702,1.03237855,104860.0,104850.0,1.73037046]
[1750385534997,0.90237855,104860.0,104850.0,1.73037046]
[1750385535193,1.00237855,104860.0,104850.0,1.73037046]
[1750385536294,0.90237855,104860.0,104850.0,1.73037046]
[1750385538702,1.00237855,104860.0,104850.0,1.73037046]
[1750385538884,1.01237855,104860.0,104850.0,1.73037046]
[1750385539094,0.90237855,104860.0,104850.0,1.73037046]
[1750385539290,1.00237855,104860.0,104850.0,1.36957046]
[1750385539490,0.90237855,104860.0,104850.0,1.36957046]
[1750385540594,1.03237855,104860.0,104850.0,1.36957046]
[1750385540898,0.90237855,104860.0,104850.0,1.36957046]
[1750385541197,0.90237855,104860.0,104850.0,1.00877046]
[1750385541504,1.02237855,104860.0,104850.0,1.36957046]
[1750385541701,1.04237855,104860.0,104850.0,1.36957046]
[1750385542096,1.01237855,104860.0,104850.0,0.79261046]
[1750385542297,1.26276238,104860.0,104850.0,0.54222663]
[1750385542618,1.18644196,104860.0,104850.0,0.54222663]
[1750385542897,1.18644196,104860.0,104850.0,0.79261046]
[1750385543200,1.18644196,104860.0,104850.0,0.54222663]
[1750385544402,1.76348196,104860.0,104850.0,0.54222663]
[1750385545205,1.76348196,104860.0,104850.0,0.18142663]
[1750385545405,2.85261363,104860.0,104820.0,0.4084954]
[1750385545606,0.87824125,104830.0,104820.0,0.1907732]
[1750385545906,0.99195123,104830.0,104820.0,0.1907732]
[1750385546104,1.23303656,104830.0,104820.0,0.1907732]
[1750385546305,1.30925455,104830.0,104820.0,0.1907732]
[1750385546804,0.1907857,104820.0,104810.0,1.19542289]
[1750385546995,0.97366953,104820.0,104810.0,0.61822289]
[1750385547191,1.09366953,104820.0,104810.0,1.19542289]
[1750385547399,0.97366953,104820.0,104810.0,1.19542289]
[1750385547597,1.12341674,104820.0,104810.0,1.19542289]
[1750385547800,0.98341674,104820.0,104810.0,1.19542289]
[1750385548007,0.98341674,104820.0,104810.0,1.19842289]
[1750385548205,1.09341674,104820.0,104810.0,1.19842289]
[1750385548395,0.98341674,104820.0,104810.0,1.19842289]
[1750385548799,0.98341674,104820.0,104810.0,0.62122289]
[1750385549209,0.79010407,104820.0,104810.0,0.62122289]
[1750385549506,1.16074069,104820.0,104810.0,0.62122289]
[1750385549702,1.03074069,104820.0,104810.0,0.62122289]
[1750385550103,1.03074069,104820.0,104810.0,0.37083906]
[1750385550303,1.69086953,104820.0,104810.0,0.32313966]
[1750385550611,1.72336953,104820.0,104810.0,0.32313966]
[1750385551098,1.66096506,104820.0,104810.0,0.32313966]
[1750385551304,1.66096506,104820.0,104810.0,0.57352349]
[1750385551698,1.76096506,104820.0,104810.0,0.57352349]
[1750385551903,1.79096506,104820.0,104810.0,0.57352349]
[1750385552104,1.71799709,104820.0,104810.0,0.57352349]
[1750385552505,1.82799709,104820.0,104810.0,0.57352349]
[1750385552810,1.71799709,104820.0,104810.0,0.57352349]
[1750385553212,1.84799709,104820.0,104810.0,0.57352349]
[1750385555611,1.86201344,104820.0,104810.0,0.57352349]
[1750385556211,1.50121344,104820.0,104810.0,0.57352349]
[1750385556515,1.86201344,104820.0,104810.0,0.57352349]
[1750385558112,1.98239727,104820.0,104810.0,0.22774256]
[1750385558415,2.08239727,104820.0,104810.0,0.22774256]
[1750385558709,1.73201344,104820.0,104810.0,0.22774256]
[1750385559006,2.08239727,104820.0,104810.0,0.22774256]
[1750385559207,2.10239727,104820.0,104810.0,0.22774256]
[1750385559406,2.13239727,104820.0,104810.0,0.22774256]
[1750385559715,2.10239727,104820.0,104810.0,0.22774256]
[1750385559905,2.12239727,104820.0,104810.0,0.22774256]
[1750385560105,1.73201344,104820.0,104810.0,0.22774256]
[1750385560606,1.86461344,104820.0,104810.0,0.22774256]
[1750385561609,1.98211344,104820.0,104810.0,0.22774256]
[1750385561814,1.83211344,104820.0,104810.0,0.47812639]
[1750385562203,1.8512994,104820.0,104810.0,0.47812639]
[1750385562407,1.8512994,104820.0,104810.0,0.22774256]
[1750385563114,1.9512994,104820.0,104810.0,0.22774256]
[1750385563710,1.87508141,104820.0,104810.0,0.22774256]
[1750385564806,1.9512994,104820.0,104810.0,0.22774256]
[1750385566503,1.8186994,104820.0,104810.0,0.22774256]
[1750385568716,1.7186994,104820.0,104810.0,0.22774256]
[1750385568917,1.8386994,104820.0,104810.0,0.47812639]
[1750385570116,2.08908323,104820.0,104810.0,0.47812639]
[1750385570419,2.11918323,104820.0,104810.0,0.47812639]
[1750385570810,2.11918323,104820.0,104810.0,0.22774256]
[1750385573121,2.11918323,104820.0,104810.0,0.47812639]
[1750385573920,1.8687994,104820.0,104810.0,0.47812639]
[1750385576318,2.11918323,104820.0,104810.0,0.47812639]
[1750385576514,2.11918323,104820.0,104810.0,0.47512639]
[1750385576711,2.11918323,104820.0,104810.0,0.47612639]
[1750385577324,2.04296524,104820.0,104810.0,0.47612639]
[1750385577824,1.79258141,104820.0,104810.0,0.47612639]
[1750385581028,1.79258141,104820.0,104810.0,0.22574256]
[1750385581731,1.79258141,104820.0,104810.0,0.47612639]
[1750385581926,1.54219758,104820.0,104810.0,0.47612639]
[1750385582125,1.79258141,104820.0,104810.0,0.47612639]
[1750385582532,1.54219758,104820.0,104810.0,0.47612639]
[1750385582734,1.79258141,104820.0,104810.0,0.47612639]
[1750385583032,1.79258141,104820.0,104810.0,0.22574256]
[1750385583234,1.79258141,104820.0,104810.0,0.47612639]
[1750385585247,1.63756222,104820.0,104810.0,0.47612639]
[1750385585441,1.88794605,104820.0,104810.0,0.47612639]
[1750385587848,1.05051994,104820.0,104810.0,0.47612639]
[1750385588047,1.84780377,104820.0,104810.0,0.50682639]
[1750385588240,1.86780377,104820.0,104810.0,0.50682639]
[1750385588546,1.63243913,104820.0,104810.0,0.50682639]
[1750385588754,1.76243913,104820.0,104810.0,0.50682639]
[1750385588957,1.72780377,104820.0,104810.0,0.50682639]
[1750385589850,1.15080377,104820.0,104810.0,0.50682639]
[1750385590046,0.2221696,104820.0,104810.0,0.86762639]
[1750385590246,0.50831994,104820.0,104810.0,0.89812639]
[1750385590451,0.4129553,104820.0,104810.0,0.89812639]
[1750385591251,0.2221696,104820.0,104810.0,0.89812639]
[1750385591752,0.4129553,104820.0,104810.0,0.89812639]
[1750385593752,0.4129553,104820.0,104810.0,0.64774256]
[1750385593954,0.4892827,104820.0,104810.0,0.89812639]
[1750385594155,0.4888827,104820.0,104810.0,0.89812639]
[1750385594345,0.4892827,104820.0,104810.0,0.89812639]
[1750385595247,0.4892827,104820.0,104810.0,0.64774256]
[1750385595456,0.4892827,104820.0,104810.0,0.89812639]
[1750385599358,0.4892827,104820.0,104810.0,1.47512639]
[1750385600755,0.4892827,104820.0,104810.0,1.22474256]
[1750385600952,0.4892827,104820.0,104810.0,1.47512639]
[1750385601651,0.6292827,104820.0,104810.0,1.47512639]
[1750385601854,0.4892827,104820.0,104810.0,1.47512639]
[1750385602257,0.4129553,104820.0,104810.0,1.47512639]
[1750385604458,0.48926139,104820.0,104810.0,1.47512639]
[1750385604858,0.52226139,104820.0,104810.0,1.47512639]
[1750385606557,0.87264522,104820.0,104810.0,1.47512639]
[1750385606756,0.77264522,104820.0,104810.0,1.47512639]
[1750385607162,0.87264522,104820.0,104810.0,1.47512639]
[1750385607461,0.77264522,104820.0,104810.0,1.47512639]
[1750385611458,0.91264522,104820.0,104810.0,1.22474256]
[1750385611661,0.91264522,104820.0,104810.0,1.47512639]
[1750385611966,0.80274522,104820.0,104810.0,1.44462639]
[1750385612264,0.92180377,104820.0,104810.0,1.44462639]
[1750385612451,0.95180377,104820.0,104810.0,1.19424256]
[1750385612762,0.71141994,104820.0,104810.0,1.41392639]
[1750385612960,0.92180377,104820.0,104810.0,1.41392639]
[1750385613154,0.82180377,104820.0,104810.0,0.80274256]
[1750385613463,0.85250377,104820.0,104810.0,1.05312639]
[1750385613663,0.99250377,104820.0,104810.0,1.05312639]
[1750385613862,0.94250377,104820.0,104810.0,1.05312639]
[1750385614161,0.85250377,104820.0,104810.0,1.05312639]
[1750385615268,0.75713913,104820.0,104810.0,1.05312639]
[1750385616864,0.85250377,104820.0,104810.0,1.05312639]
[1750385617063,0.85250377,104820.0,104810.0,0.47612639]
[1750385617661,0.82180377,104820.0,104810.0,0.47612639]
[1750385617857,0.57141994,104820.0,104810.0,0.47612639]
[1750385618161,0.82180377,104820.0,104810.0,0.47612639]
[1750385622168,0.80280161,104820.0,104810.0,0.47612639]
[1750385622860,0.94280161,104820.0,104810.0,0.47612639]
[1750385623055,0.80280161,104820.0,104810.0,0.47612639]
[1750385623672,0.90280161,104820.0,104810.0,0.47612639]
[1750385623856,0.92280161,104820.0,104810.0,0.47612639]
[1750385624059,0.91280161,104820.0,104810.0,0.47612639]
[1750385624259,0.95280161,104820.0,104810.0,0.47612639]
[1750385624460,0.91280161,104820.0,104810.0,0.47612639]
[1750385624665,0.94490161,104820.0,104810.0,0.47612639]
[1750385625168,0.87853913,104820.0,104810.0,0.47612639]
[1750385625366,0.88853913,104820.0,104810.0,0.47612639]
[1750385625669,0.75853913,104820.0,104810.0,0.47612639]
[1750385626064,0.87853913,104820.0,104810.0,0.47612639]
[1750385626667,0.75853913,104820.0,104810.0,0.47612639]
[1750385627371,0.89853913,104820.0,104810.0,0.47612639]
[1750385627670,0.75853913,104820.0,104810.0,0.47612639]
[1750385628271,0.86853913,104820.0,104810.0,0.47612639]
[1750385628472,0.87853913,104820.0,104810.0,0.47612639]
[1750385629068,0.88853913,104820.0,104810.0,0.47612639]
[1750385629273,1.49972296,104820.0,104810.0,0.44312639]
[1750385629570,1.5950876,104820.0,104810.0,0.44312639]
[1750385629964,1.5950876,104820.0,104810.0,0.19274256]
[1750385630167,1.49972296,104820.0,104810.0,0.19274256]
[1750385631170,1.50072296,104820.0,104810.0,0.19274256]
[1750385631567,1.50072296,104820.0,104810.0,0.44312639]
[1750385631873,1.25033913,104820.0,104810.0,0.44312639]
[1750385632372,1.25133913,104820.0,104810.0,0.44212639]
[1750385633258,1.0109553,104820.0,104810.0,0.44212639]
[1750385633471,1.26133913,104820.0,104810.0,0.44212639]
[1750385633975,1.51172296,104820.0,104810.0,0.44212639]
[1750385634468,1.51172296,104820.0,104810.0,0.19174256]
[1750385634672,1.51172296,104820.0,104810.0,0.19175786]
[1750385636473,1.51172296,104820.0,104810.0,0.00095406]
[1750385636673,1.75002571,104820.0,104810.0,0.19175786]
[1750385638372,1.75002571,104820.0,104810.0,0.00095406]
[1750385639065,1.75002571,104820.0,104810.0,0.19175786]
[1750385643975,1.65466107,104820.0,104810.0,0.19175786]
[1750385644274,1.75002571,104820.0,104810.0,0.19175786]
[1750385645475,1.65466107,104820.0,104810.0,0.19175786]
[1750385646876,1.65466107,104820.0,104810.0,0.00095406]
[1750385647580,1.75002571,104820.0,104810.0,0.00095406]
[1750385652273,1.15389341,104820.0,104810.0,0.00095406]
[1750385652474,1.65466107,104820.0,104810.0,0.00095406]
[1750385654482,1.29386107,104820.0,104810.0,0.00095406]
[1750385654682,2.1108274,104820.0,104810.0,0.00095406]
[1750385657472,2.01546107,104820.0,104810.0,0.00095406]
[1750385657678,0.1908038,104810.0,104800.0,0.2714229]
[1750385657877,1.80900486,104810.0,104800.0,0.2237221]
[1750385658078,1.98244916,104810.0,104800.0,0.0329]
[1750385658386,0.1908221,104800.0,104790.0,0.64873983]
[1750385658585,1.07470593,104800.0,104790.0,0.68093983]
[1750385659489,1.06909545,104800.0,104790.0,0.63323043]
[1750385659679,1.06909545,104800.0,104790.0,0.63623043]
[1750385659873,1.06909545,104800.0,104790.0,0.3858466]
[1750385660078,1.41485651,104800.0,104790.0,0.2904293]
[1750385660288,1.19517268,104800.0,104790.0,0.2904293]
[1750385660487,1.19517268,104800.0,104790.0,0.2924293]
[1750385660787,1.58817189,104800.0,104790.0,0.0372]
[1750385660983,1.58817189,104800.0,104790.0,0.2280403]
[1750385661286,1.58817189,104800.0,104790.0,0.0372]
[1750385661287,1.59234596,104800.0,104790.0,0.0372]
[1750385661682,1.62394596,104800.0,104790.0,0.0372]
[1750385662388,1.52856873,104800.0,104790.0,0.0372]
[1750385662592,1.62394596,104800.0,104790.0,0.0372]
[1750385662978,1.52856873,104800.0,104790.0,0.0372]
[1750385663181,1.72394596,104800.0,104790.0,0.005]
[1750385663390,1.62856873,104800.0,104790.0,0.005]
[1750385664292,1.52856873,104800.0,104790.0,0.003]
[1750385664692,0.1908403,104790.0,104780.0,0.28740004]
[1750385664994,0.1908403,104790.0,104780.0,0.22520004]
[1750385664995,1.74764623,104790.0,104780.0,0.22520004]
[1750385665293,2.05648417,104790.0,104780.0,0.22520004]
[1750385665798,2.05648417,104790.0,104780.0,0.22820004]
[1750385666183,2.05648417,104790.0,104780.0,0.23020004]
[1750385667395,1.85531807,104790.0,104780.0,0.23020004]
[1750385667693,2.04615837,104790.0,104780.0,0.23020004]
[1750385668894,2.0556269,104790.0,104780.0,0.23020004]
[1750385670897,2.0341527,104790.0,104780.0,0.23020004]
[1750385676400,2.03832677,104790.0,104780.0,0.48058387]
[1750385676597,2.03832677,104790.0,104780.0,0.23020004]
[1750385676797,2.03832677,104790.0,104780.0,0.48058387]
[1750385677691,2.03832677,104790.0,104780.0,0.51098387]
[1750385677892,2.03832677,104790.0,104780.0,0.54108387]
[1750385678098,2.03832677,104790.0,104780.0,0.54208387]
[1750385678390,2.03832677,104790.0,104780.0,0.54008387]
[1750385680204,1.32792677,104790.0,104780.0,0.54008387]
[1750385680604,1.03527441,104790.0,104780.0,0.7904677]
[1750385680901,1.58283441,104790.0,104780.0,0.7904677]
[1750385681103,1.58243441,104790.0,104780.0,0.7904677]
[1750385681291,1.83321824,104790.0,104780.0,0.28970004]
[1750385681494,1.83321824,104790.0,104780.0,0.54008387]
[1750385682703,1.84281442,104790.0,104780.0,0.54008387]
[1750385683702,1.86281442,104790.0,104780.0,0.54008387]
[1750385684107,1.87281442,104790.0,104780.0,0.54008387]
[1750385684398,1.86281442,104790.0,104780.0,0.54008387]
[1750385684592,1.73281442,104790.0,104780.0,0.54008387]
[1750385684996,1.84281442,104790.0,104780.0,0.54008387]
[1750385685199,1.83281442,104790.0,104780.0,0.54008387]
[1750385685404,1.73281442,104790.0,104780.0,0.54008387]
[1750385685902,1.85281442,104790.0,104780.0,0.54008387]
[1750385686105,1.72321824,104790.0,104780.0,0.54008387]
[1750385687000,1.87321824,104790.0,104780.0,0.54008387]
[1750385687199,1.72321824,104790.0,104780.0,0.54008387]
[1750385687399,1.64699614,104790.0,104780.0,0.54008387]
[1750385691108,1.74699614,104790.0,104780.0,0.54008387]
[1750385691309,1.64699614,104790.0,104780.0,0.54008387]
[1750385692008,1.73699614,104790.0,104780.0,0.54008387]
[1750385692214,1.64699614,104790.0,104780.0,0.54008387]
[1750385692706,1.75699614,104790.0,104780.0,0.54008387]
[1750385692906,1.64699614,104790.0,104780.0,0.54008387]
[1750385695010,1.76759614,104790.0,104780.0,0.54008387]
[1750385695213,1.70949614,104790.0,104780.0,0.54008387]
[1750385695915,1.70949614,104790.0,104780.0,0.28970004]
[1750385696118,1.70949614,104790.0,104780.0,0.54008387]
[1750385696515,1.84949614,104790.0,104780.0,0.54008387]
[1750385697216,1.70949614,104790.0,104780.0,0.54008387]
[1750385698804,1.70949614,104790.0,104780.0,0.28970004]
[1750385699009,1.70949614,104790.0,104780.0,0.54008387]
[1750385699417,1.81949614,104790.0,104780.0,0.54008387]
[1750385699609,1.70949614,104790.0,104780.0,0.54008387]
[1750385700110,1.10003614,104790.0,104780.0,0.54008387]
[1750385700316,0.81905231,104790.0,104780.0,0.7904677]
[1750385700709,0.81865231,104790.0,104780.0,0.7904677]
[1750385700913,0.81905231,104790.0,104780.0,0.7904677]
[1750385702218,0.79442954,104790.0,104780.0,0.7904677]
[1750385702418,0.43362944,104790.0,104780.0,0.7904677]
[1750385703017,0.33825221,104790.0,104780.0,0.7904677]
[1750385703414,0.14741201,104790.0,104780.0,0.7904677]
[1750385703621,0.14701201,104790.0,104780.0,1.1512677]
[1750385703820,0.14741201,104790.0,104780.0,1.1512677]
[1750385706723,0.45825231,104790.0,104780.0,1.1512677]
[1750385706915,0.33825231,104790.0,104780.0,1.1512677]
[1750385707116,0.66494792,104790.0,104780.0,1.1512677]
[1750385709815,0.41456409,104790.0,104780.0,1.1512677]
[1750385710522,0.22372379,104790.0,104780.0,1.1512677]
[1750385712026,0.22332379,104790.0,104780.0,1.1512677]
[1750385712326,0.22372379,104790.0,104780.0,1.1512677]
[1750385716824,0.08088585,104790.0,104780.0,1.1512677]
[1750385717130,0.00417407,104790.0,104780.0,1.1512677]
[1750385717331,0.00457407,104790.0,104780.0,1.1512677]
[1750385718632,0.00417407,104790.0,104780.0,1.1512677]
[1750385718830,0.00457407,104790.0,104780.0,1.1512677]
[1750385721039,0.0617713,104790.0,104780.0,1.1512677]
[1750385734539,0.0617713,104790.0,104780.0,1.5120677]
[1750385735851,0.0617713,104790.0,104780.0,1.5140677]
[1750385736043,0.0617713,104790.0,104780.0,1.5160677]
[1750385737949,0.0617713,104790.0,104780.0,1.01530004]
[1750385738148,0.0617713,104790.0,104780.0,1.5160677]
[1750385739350,0.0617713,104790.0,104780.0,2.0937477]
[1750385742148,0.08088585,104790.0,104780.0,2.0937477]
[1750385743153,0.08088585,104790.0,104780.0,1.59298004]
[1750385743352,0.08088585,104790.0,104780.0,2.0937477]
[1750385752157,0.00457407,104790.0,104780.0,2.0937477]
[1750385753458,0.00457407,104790.0,104780.0,2.34413153]
[1750385753651,0.00417407,104790.0,104780.0,2.34413153]
[1750385753852,0.13861178,104800.0,104790.0,0.1908403]
[1750385754152,0.13861178,104800.0,104790.0,1.11650796]
[1750385755058,0.10851178,104800.0,104790.0,1.24962796]
[1750385755262,0.10851178,104800.0,104790.0,1.25062796]
[1750385755465,0.10851178,104800.0,104790.0,1.28332796]
[1750385755856,0.0322,104800.0,104790.0,1.28332796]
[1750385756364,0.0326,104800.0,104790.0,1.28332796]
[1750385759361,0.10891178,104800.0,104790.0,1.28332796]
[1750385760656,0.10891178,104800.0,104790.0,1.64412796]
[1750385763469,0.10891178,104800.0,104790.0,0.92252796]
[1750385763671,0.10891178,104800.0,104790.0,1.64412796]
[1750385764571,0.11308585,104800.0,104790.0,1.64412796]
[1750385770676,0.03677407,104800.0,104790.0,1.64412796]
[1750385773376,0.11308585,104800.0,104790.0,2.22136796]
[1750385773672,0.11308585,104800.0,104790.0,1.26062413]
[1750385773877,0.14498585,104800.0,104790.0,1.97062413]
[1750385774473,0.14498585,104800.0,104790.0,1.93792413]
[1750385774677,0.14498585,104800.0,104790.0,1.90642413]
[1750385775874,0.14498585,104800.0,104790.0,1.18482413]
[1750385776074,0.14498585,104800.0,104790.0,1.54562413]
[1750385778583,0.45026896,104810.0,104800.0,0.1908221]
[1750385778777,0.62026896,104810.0,104800.0,0.45706623]
[1750385778978,0.53026896,104810.0,104800.0,1.03426623]
[1750385779579,0.33946416,104810.0,104800.0,1.03426623]
[1750385779875,0.34363823,104810.0,104800.0,1.03426623]
[1750385780184,0.45463823,104810.0,104800.0,1.03426623]
[1750385780384,0.34463823,104810.0,104800.0,1.03426623]
[1750385780776,0.53544203,104810.0,104800.0,1.03426623]
[1750385780984,0.65544203,104810.0,104800.0,1.03426623]
[1750385781184,0.53544203,104810.0,104800.0,1.03426623]
[1750385781385,0.53644203,104810.0,104800.0,1.03426623]
[1750385781883,0.60094203,104810.0,104800.0,1.03426623]
[1750385783080,0.54013823,104810.0,104800.0,1.03426623]
[1750385783281,0.41013823,104810.0,104800.0,1.06606623]
[1750385783677,0.41013823,104810.0,104800.0,1.31645006]
[1750385785281,0.60094203,104810.0,104800.0,1.31645006]
[1750385785481,0.60094203,104810.0,104800.0,0.8156824]
[1750385785685,0.60094203,104810.0,104800.0,1.06606623]
[1750385786285,0.73094203,104810.0,104800.0,1.06606623]
[1750385786587,0.70094203,104810.0,104800.0,1.06606623]
[1750385786787,0.60094203,104810.0,104800.0,1.06606623]
[1750385792382,0.69631926,104810.0,104800.0,1.06606623]
[1750385792989,0.82631926,104810.0,104800.0,1.06606623]
[1750385793191,0.69631926,104810.0,104800.0,1.06606623]
[1750385793690,0.68803893,104810.0,104800.0,1.06606623]
[1750385793895,0.68803893,104810.0,104800.0,1.12966623]